Workbook

Sheet Lâmina_Ações Básica
E1: Lâmina - Ações Básica
B2: Dta. Últ. Cot.: | C2: =IF($C$3="",_xll.ECONOMATICA("IBOV","Date of Last Quote"),$C$3) -> 2024-09-26 | E2: ← Não Modificar
B3: Dta. Pref. Últ. Cot.: | E3: ← Para alterar a data da Célula C5, basta digitar na Célula C6
B5: Informações Gerais | I5: Retorno
B6: Nome | F6: =IFERROR(INDEX(Base!F:F,MATCH('Lâmina_Ações Básica'!F7,Base!C:C,0)),"") -> Petrobras PN | I6: Código | J6: Tipo | K6: =EOMONTH(L6,-1) -> 2024-07-31 | L6: =EOMONTH(M6,-1) -> 2024-08-31 | M6: =C2 -> 2024-09-26 | N6: =DATE(YEAR($C$2)-2,12,31) -> 2022-12-31 | O6: =DATE(YEAR($C$2)-1,12,31) -> 2023-12-31 | P6: =C2 -> 2024-09-26 | Q6: 1d | R6: 1w | S6: 1m | T6: 12m
B7: Código | E7: Digitar ou Selecionar o Códigol → | F7: PETR4 | I7: =IFERROR(_xll.ECONOMATICA(F7&"<XBSP>","ticker"),"") -> PETR4 | J7: =IFERROR(_xll.ECONOMATICA(F7&"<XBSP>","Class"),"") -> PN | K7: =IFERROR(_xll.ECONOMATICA($F$7&"<XBSP>","return","in the month",K6,,,,"decimal"),"") -> -0.01681997372 | L7: =IFERROR(_xll.ECONOMATICA($F$7&"<XBSP>","return","in the month",L6,,,,"decimal"),"") -> 0.08234311666 | M7: =IFERROR(_xll.ECONOMATICA($F$7&"<XBSP>","return","in the month",M6,,,,"decimal"),"") -> -0.0792481585 | N7: =IFERROR(_xll.ECONOMATICA($F$7&"<XBSP>","return","in the year",N6,,,,"decimal"),"") -> 0.4722662673 | O7: =IFERROR(_xll.ECONOMATICA($F$7&"<XBSP>","return","in the year",O6,,,,"decimal"),"") -> 0.9603967094 | P7: =IFERROR(_xll.ECONOMATICA($F$7&"<XBSP>","return","in the year",P6,,,,"decimal"),"") -> 0.1049999266 | Q7: =IFERROR(_xll.ECONOMATICA($F$7&"<XBSP>","return",Q6,C2,,,,"decimal"),"") -> -0.02159244265 | R7: =IFERROR(_xll.ECONOMATICA($F$7&"<XBSP>","return",R6,$C$2,,,,"decimal"),"") -> -0.0005514199065 | S7: =IFERROR(_xll.ECONOMATICA($F$7&"<XBSP>","return",S6,$C$2,,,,"decimal","false","false"),"") -> -0.08390194592 | T7: =IFERROR(_xll.ECONOMATICA($F$7&"<XBSP>","return",T6,$C$2,,,,"decimal","false","false"),"") -> 0.2768975097
B8: Subsetor Bovespa | F8: =IFERROR(_xll.ECONOMATICA($F$7&"<XBSP>","Subsector Bovespa",,$C$2),"") -> 
B9: Principal Acionista | F9: =IFERROR(_xll.ECONOMATICA($F$7&"<XBSP>","MainShHol"),"") -> Uniao Federal (Tesouro Nacional) | I9: Preço da Ação | P9: Selecione os Meses ou Digite uma Data e Selecionar um Período (M = Mês; Q = Trimestre; Y = Anos) → | Q9: Período: | R9: D | S9: Anos: | T9: 1Y
B10: Ações Possuídas (Principal Acionista) | F10: =IFERROR(_xll.ECONOMATICA($F$7&"<XBSP>","ShrsHold",,,,,,"decimal","false",,,{"std.cac.ccacq=2";"std.cac.fam=1"}),"") -> 0.2867470345
B12: Cotações | E12: Estatísticas
B13: Fechamento | C13: =IFERROR(_xll.ECONOMATICA($F$7&"<XBSP>","Close",,$C$2,,,,,"false","false"),"") -> 36.25 | E13: Beta (60 meses) | G13: =IFERROR(_xll.ECONOMATICA($F$7&"<XBSP>","Beta",,$C$2,,,,,"false","false"),"") -> 1.351174213
B14: Data da Última Cotação | C14: =IFERROR(_xll.ECONOMATICA($F$7&"<XBSP>","Date of Last Quote",,$C$2,,,"ORIGINAL CURRENCY",,"false","false"),"") -> 2024-09-26 | E14: Correlação (60 meses) | G14: =IFERROR(_xll.ECONOMATICA($F$7&"<XBSP>","Correlation",,C2,,,,,"false","false"),"") -> 0.7732054589
B15: Máximo (52w) | C15: =IFERROR(_xll.ECONOMATICA($F$7&"<XBSP>","High","52w",$C$2,,,,,"false","false"),"") -> 39.86 | E15: Volatilidade (1 ano) | G15: =IFERROR(_xll.ECONOMATICA($F$7&"<XBSP>","Volatility","1y",C2,,,,,"false","false"),"") -> 28.09291821
B16: Mínimo (52w) | C16: =IFERROR(_xll.ECONOMATICA($F$7&"<XBSP>","Low","52w",$C$2,,,,,"false","FALSE"),"") -> 27.39643664 | E16: Sharpe (1 ano) | G16: =IFERROR(_xll.ECONOMATICA($F$7&"<XBSP>","Sharpe","1y",C2,,,,,"false","false"),"") -> 0.7052118105
B17: Volume Médio (Milhões) | C17: =IFERROR(_xll.ECONOMATICA($F$7&"<XBSP>","Hist Average","21D",C2,,,"ORIGINAL CURRENCY","THOUSANDS","false","false",,{"std.tec.cals=7"}),"") -> 1290892.803 | E17: Participação no Índice | G17: =IFERROR(_xll.ECONOMATICA($F$7&"<XBSP>","Index particip.",,$C$2,,,,"decimal","false","false"),"") -> 
B19: Situação Financeira (12m) | I19: Performance Relativa | R19: Selecione Um Índice → | S19: Índice: | T19: IBOV
B21: Indicador de Mercado | C21: =IFERROR(IF(MONTH(F21)=12,DATE(YEAR(F21)-2,MONTH(F21)+1,0),DATE(YEAR(F21)-1,MONTH(F21)+1,0)),"") -> 2023-06-30 | E21: =IFERROR(DATE(YEAR(F21),1,0),"") -> 2023-12-31 | F21: =IFERROR(_xll.ECONOMATICA($F$7&"<XBSP>","Fin Statm Date",,CHOOSE(ROUNDUP(MONTH(G21)/3,0),"<dez/"&YEAR(G21)-1,"<mar/"&YEAR(G21),"<jun/"&YEAR(G21),"<set/"&YEAR(G21))),IFERROR(_xll.ECONOMATICA(F7&"<XBSP>","Fin Statm Date"),"")) -> 2024-06-30 | G21: =C2 -> 2024-09-26
B22: Preco / Lucro | C22: =IFERROR(_xll.ECONOMATICA($F$7&"<XBSP>","P/E",,C$21,,,,,"false","false"),"") -> 2.463279062 | E22: =IFERROR(_xll.ECONOMATICA($F$7&"<XBSP>","P/E",,E$21,,,,,"false","false"),"") -> 3.896166391 | F22: =IFERROR(_xll.ECONOMATICA($F$7&"<XBSP>","P/E",,F$21,,,,,"false","false"),"") -> 6.269187321 | G22: =IFERROR(_xll.ECONOMATICA($F$7&"<XBSP>","P/E",,G$21,,,,,"false","false"),"") -> 5.972616042
B23: Preco / Valor Patrimônio | C23: =IFERROR(_xll.ECONOMATICA($F$7&"<XBSP>","P/BV",,C$21,,,,,"false","false"),"") -> 1.039150064 | E23: =IFERROR(_xll.ECONOMATICA($F$7&"<XBSP>","P/BV",,E$21,,,,,"false","false"),"") -> 1.266663455 | F23: =IFERROR(_xll.ECONOMATICA($F$7&"<XBSP>","P/BV",,F$21,,,,,"false","false"),"") -> 1.313102695 | G23: =IFERROR(_xll.ECONOMATICA($F$7&"<XBSP>","P/BV",,G$21,,,,,"false","false"),"") -> 1.250984828
B24: Dividend Yield (cot fim) | C24: =IFERROR(_xll.ECONOMATICA($F$7&"<XBSP>","Div Yld (end)",,C$21,,,,"decimal","false","false"),"") -> 0.5023380261 | E24: =IFERROR(_xll.ECONOMATICA($F$7&"<XBSP>","Div Yld (end)",,E$21,,,,"decimal","false","false"),"") -> 0.1946238026 | F24: =IFERROR(_xll.ECONOMATICA($F$7&"<XBSP>","Div Yld (end)",,F$21,,,,"decimal","false","false"),"") -> 0.1698801495 | G24: =IFERROR(_xll.ECONOMATICA($F$7&"<XBSP>","Div Yld (end)",,G$21,,,,"decimal","false","false"),"") -> 0.1756644375
B25: Valor de Mercado | C25: =IFERROR(_xll.ECONOMATICA($F$7&"<XBSP>","MarketCapitaliz",,C$21,,,,,"false","false"),"") -> 411764029270 | E25: =IFERROR(_xll.ECONOMATICA($F$7&"<XBSP>","MarketCapitaliz",,E$21,,,,,"false","false"),"") -> 494840194200 | F25: =IFERROR(_xll.ECONOMATICA($F$7&"<XBSP>","MarketCapitaliz",,F$21,,,,,"false","false"),"") -> 507756680680 | G25: =IFERROR(_xll.ECONOMATICA($F$7&"<XBSP>","MarketCapitaliz",,G$21,,,,,"false","false"),"") -> 492743416230
B26: Price Sales Ratio | C26: =IFERROR(_xll.ECONOMATICA($F$7&"<XBSP>","PSR",,C$21,,,,,"false","false"),"") -> 0.662344859 | E26: =IFERROR(_xll.ECONOMATICA($F$7&"<XBSP>","PSR",,E$21,,,,,"false","false"),"") -> 0.9482253881 | F26: =IFERROR(_xll.ECONOMATICA($F$7&"<XBSP>","PSR",,F$21,,,,,"false","false"),"") -> 0.9894101991 | G26: =IFERROR(_xll.ECONOMATICA($F$7&"<XBSP>","PSR",,G$21,,,,,"false","false"),"") -> 0.942604986
B27: Dividendo Pago por Ação | C27: =IFERROR(_xll.ECONOMATICA($F$7&"<XBSP>","Divid per Share",,C$21,,,,,"false","false"),"") -> 14.83404191 | E27: =IFERROR(_xll.ECONOMATICA($F$7&"<XBSP>","Divid per Share",,E$21,,,,,"false","false"),"") -> 7.24779041 | F27: =IFERROR(_xll.ECONOMATICA($F$7&"<XBSP>","Divid per Share",,F$21,,,,,"false","false"),"") -> 6.46393969 | G27: =IFERROR(_xll.ECONOMATICA($F$7&"<XBSP>","Divid per Share",,G$21,,,,,"false","false"),"") -> 6.36783586
B29: Indicador Financeiros | C29: =IFERROR(IF(MONTH(F29)=12,DATE(YEAR(F29)-2,MONTH(F29)+1,0),DATE(YEAR(F29)-1,MONTH(F29)+1,0)),"") -> 2023-06-30 | E29: =IFERROR(DATE(YEAR(F29),1,0),"") -> 2023-12-31 | F29: =IFERROR(_xll.ECONOMATICA($F$7&"<XBSP>","Fin Statm Date",,CHOOSE(ROUNDUP(MONTH(G21)/3,0),"<dez/"&YEAR(G21)-1,"<mar/"&YEAR(G21),"<jun/"&YEAR(G21),"<set/"&YEAR(G21))),IFERROR(_xll.ECONOMATICA(F7&"<XBSP>","Fin Statm Date"),"")) -> 2024-06-30
B30: LPA Lucro por Ação | C30: =IFERROR(_xll.ECONOMATICA($F$7&"<XBSP>","EPS","12M",C$29,,,,,"false","false"),"") -> 11.9880855 | E30: =IFERROR(_xll.ECONOMATICA($F$7&"<XBSP>","EPS",,E$29,,,,,"false","false"),"") -> 9.558113351 | F30: =IFERROR(_xll.ECONOMATICA($F$7&"<XBSP>","EPS","12M",F$29,,,,,"false","false"),"") -> 6.069367216 | I30: ="Preço / Lucro em "&T9 -> Preço / Lucro em 1Y
B31: VPA Valor Patr por Ação | C31: =IFERROR(_xll.ECONOMATICA($F$7&"<XBSP>","BVperShare",,C$29,,,,,"false","false"),"") -> 28.41745482 | E31: =IFERROR(_xll.ECONOMATICA($F$7&"<XBSP>","BVperShare",,E$29,,,,,"false","false"),"") -> 29.40007454 | F31: =IFERROR(_xll.ECONOMATICA($F$7&"<XBSP>","BVperShare",,F$29,,,,,"false","false"),"") -> 28.97716998
B32: Margem Bruta | C32: =IFERROR(_xll.ECONOMATICA($F$7&"<XBSP>","GrossMargin","12M",C$29,,,,"decimal","false","false"),"") -> 0.5063337936 | E32: =IFERROR(_xll.ECONOMATICA($F$7&"<XBSP>","GrossMargin",,E$29,,,,"decimal","false","false"),"") -> 0.527219069 | F32: =IFERROR(_xll.ECONOMATICA($F$7&"<XBSP>","GrossMargin","12M",F$29,,,,"decimal","false","false"),"") -> 0.5223548035
B33: ROE Rent Pat (pat final) | C33: =IFERROR(_xll.ECONOMATICA($F$7&"<XBSP>","ROE (end)","12M",C$29,,,,"decimal","false","false"),"") -> 0.4216734134 | E33: =IFERROR(_xll.ECONOMATICA($F$7&"<XBSP>","ROE (end)",,E$29,,,,"decimal","false","false"),"") -> 0.3273683109 | F33: =IFERROR(_xll.ECONOMATICA($F$7&"<XBSP>","ROE (end)","12M",F$29,,,,"decimal","false","false"),"") -> 0.2106637592
B34: Margem Líquida | C34: =IFERROR(_xll.ECONOMATICA($F$7&"<XBSP>","Net Margin","12M",C$29,,,,"decimal","false","false"),"") -> 0.2699294831 | E34: =IFERROR(_xll.ECONOMATICA($F$7&"<XBSP>","Net Margin",,E$29,,,,"decimal","false","false"),"") -> 0.2444677086 | F34: =IFERROR(_xll.ECONOMATICA($F$7&"<XBSP>","Net Margin","12M",F$29,,,,"decimal","false","false"),"") -> 0.1587328304
B35: Dívida Bruta / Pat Liq | C35: =IFERROR(_xll.ECONOMATICA($F$7&"<XBSP>","DebtGr/StkEq",,C$29,,,,"Decimal","false","false"),"") -> 0.750441199 | E35: =IFERROR(_xll.ECONOMATICA($F$7&"<XBSP>","DebtGr/StkEq",,E$29,,,,"Decimal","false","false"),"") -> 0.7926505205 | F35: =IFERROR(_xll.ECONOMATICA($F$7&"<XBSP>","DebtGr/StkEq",,F$29,,,,"Decimal","false","false"),"") -> 0.8814833528
B36: Liquidez Corrente | C36: =IFERROR(_xll.ECONOMATICA($F$7&"<XBSP>","CurrRatio",,C$29,,,,,"false","false"),"") -> 0.9024861642 | E36: =IFERROR(_xll.ECONOMATICA($F$7&"<XBSP>","CurrRatio",,E$29,,,,,"false","false"),"") -> 0.9582194622 | F36: =IFERROR(_xll.ECONOMATICA($F$7&"<XBSP>","CurrRatio",,F$29,,,,,"false","false"),"") -> 0.8951408087
B38: Balanço | C38: =IFERROR(IF(MONTH(F38)=12,DATE(YEAR(F38)-2,MONTH(F38)+1,0),DATE(YEAR(F38)-1,MONTH(F38)+1,0)),"") -> 2023-06-30 | E38: =IFERROR(DATE(YEAR(F38),1,0),"") -> 2023-12-31 | F38: =IFERROR(_xll.ECONOMATICA($F$7&"<XBSP>","Fin Statm Date",,CHOOSE(ROUNDUP(MONTH(G21)/3,0),"<dez/"&YEAR(G21)-1,"<mar/"&YEAR(G21),"<jun/"&YEAR(G21),"<set/"&YEAR(G21))),IFERROR(_xll.ECONOMATICA(F7&"<XBSP>","Fin Statm Date"),"")) -> 2024-06-30
B39: Ativo total | C39: =IFERROR(_xll.ECONOMATICA($F$7&"<XBSP>","Total Assets",,C$38,,,,,"false","false"),"") -> 990459000000 | E39: =IFERROR(_xll.ECONOMATICA($F$7&"<XBSP>","Total Assets",,E$38,,,,,"false","false"),"") -> 1050888000000 | F39: =IFERROR(_xll.ECONOMATICA($F$7&"<XBSP>","Total Assets",,F$38,,,,,"false","false"),"") -> 1058688000000
B40: Patrimônio líquido | C40: =IFERROR(_xll.ECONOMATICA($F$7&"<XBSP>","Stock Eq Par",,C$38,,,,,"false","false"),"") -> 370683000000 | E40: =IFERROR(_xll.ECONOMATICA($F$7&"<XBSP>","Stock Eq Par",,E$38,,,,,"false","false"),"") -> 380441000000 | F40: =IFERROR(_xll.ECONOMATICA($F$7&"<XBSP>","Stock Eq Par",,F$38,,,,,"false","false"),"") -> 373479000000 | I40: Lucro Líquido - Trimestral (atualizado pela inflação) | R40: Selecione Um Período → | S40: Período: | T40: 10Y
B41: Receita líquida operacional | C41: =IFERROR(_xll.ECONOMATICA($F$7&"<XBSP>","Revenues",,C$38,,,,,"false","false"),"") -> 252908000000 | E41: =IFERROR(_xll.ECONOMATICA($F$7&"<XBSP>","Revenues",,E$38,,,,,"false","false"),"") -> 511994000000 | F41: =IFERROR(_xll.ECONOMATICA($F$7&"<XBSP>","Revenues",,F$38,,,,,"false","false"),"") -> 239979000000
B42: Lucro antes jur&imp EBIT | C42: =IFERROR(_xll.ECONOMATICA($F$7&"<XBSP>","EBIT",,C$38,,,,,"false","false"),"") -> 102168000000 | E42: =IFERROR(_xll.ECONOMATICA($F$7&"<XBSP>","EBIT",,E$38,,,,,"false","false"),"") -> 189342000000 | F42: =IFERROR(_xll.ECONOMATICA($F$7&"<XBSP>","EBIT",,F$38,,,,,"false","false"),"") -> 77570000000
B43: Lucro líquido | C43: =IFERROR(_xll.ECONOMATICA($F$7&"<XBSP>","Net Income",,C$38,,,,,"false","false"),"") -> 66938000000 | E43: =IFERROR(_xll.ECONOMATICA($F$7&"<XBSP>","Net Income",,E$38,,,,,"false","false"),"") -> 124606000000 | F43: =IFERROR(_xll.ECONOMATICA($F$7&"<XBSP>","Net Income",,F$38,,,,,"false","false"),"") -> 21095000000
B44: Depreciação e Amortização | C44: =IFERROR(_xll.ECONOMATICA($F$7&"<XBSP>","Depr & Amor",,C$38,,,,,"false","false"),"") -> 31268000000 | E44: =IFERROR(_xll.ECONOMATICA($F$7&"<XBSP>","Depr & Amor",,E$38,,,,,"false","false"),"") -> 66204000000 | F44: =IFERROR(_xll.ECONOMATICA($F$7&"<XBSP>","Depr & Amor",,F$38,,,,,"false","false"),"") -> 33009000000
B45: Meses | C45: =IFERROR(MONTH(C38),"") -> 6 | E45: =IFERROR(MONTH(E38),"") -> 12 | F45: =IFERROR(MONTH(F38),"") -> 6
B47: Diversos | C47: =IFERROR(IF(MONTH(F47)=12,DATE(YEAR(F47)-2,MONTH(F47)+1,0),DATE(YEAR(F47)-1,MONTH(F47)+1,0)),"") -> 2023-06-30 | E47: =IFERROR(DATE(YEAR(F47),1,0),"") -> 2023-12-31 | F47: =IFERROR(_xll.ECONOMATICA($F$7&"<XBSP>","Fin Statm Date",,CHOOSE(ROUNDUP(MONTH(G21)/3,0),"<dez/"&YEAR(G21)-1,"<mar/"&YEAR(G21),"<jun/"&YEAR(G21),"<set/"&YEAR(G21))),IFERROR(_xll.ECONOMATICA(F7&"<XBSP>","Fin Statm Date"),"")) -> 2024-06-30 | G47: =C2 -> 2024-09-26
B48: Total de Ações Outstand | C48: =IFERROR(_xll.ECONOMATICA($F$7&"<XBSP>","Num of Shares",,C$47,,,,"thousands","false","false"),"") -> 13044201.26 | E48: =IFERROR(_xll.ECONOMATICA($F$7&"<XBSP>","Num of Shares",,E$47,,,,"thousands","false","false"),"") -> 12940137.26 | F48: =IFERROR(_xll.ECONOMATICA($F$7&"<XBSP>","Num of Shares",,F$47,,,,"thousands","false","false"),"") -> 12888732.76 | G48: =IFERROR(_xll.ECONOMATICA($F$7&"<XBSP>","Num of Shares",,G$47,,,,"thousands","false","false"),"") -> 12888732.76
B49: Consolidado | C49: =IFERROR(_xll.ECONOMATICA($F$7&"<XBSP>","Consol",,C$47,,,,,"false","false"),"") -> Sim | E49: =IFERROR(_xll.ECONOMATICA($F$7&"<XBSP>","Consol",,E$47,,,,,"false","false"),"") -> Sim | F49: =IFERROR(_xll.ECONOMATICA($F$7&"<XBSP>","Consol",,F$47,,,,,"false","false"),"") -> Sim | G49: =IFERROR(_xll.ECONOMATICA($F$7&"<XBSP>","Consol",,G$47,,,,,"false","false"),"") -> -

Sheet Base_Gráficos
D1: Planilha Auxiliar Não Modificar
B2: Ativo: | C2: ='Lâmina_Ações Básica'!F7&"<XBSP>" -> PETR4<XBSP> | E2: Ano Inicial: | F2: =IF('Lâmina_Ações Básica'!T40="DESDE O INÍCIO",C3,'Lâmina_Ações Básica'!T40) -> 10Y
B3: Ínicio da Série: | C3: =_xll.ECONOMATICA(C2,"Series Start Date") -> 1986-01-02
B4: Data: | C4: ='Lâmina_Ações Básica'!C2 -> 2024-09-26 | E4: Mínimo: | F4: =ROUNDDOWN(MIN(F$10:G$1048576),-1) -> 90
B5: Final: | C5: =IF('Lâmina_Ações Básica'!T9="DESDE O INÍCIO",C3,'Lâmina_Ações Básica'!T9) -> 1Y | E5: Máximo: | F5: =ROUNDUP(MAX($F$10:$G$500),-1) -> 140
B6: Intervalo: | C6: ='Lâmina_Ações Básica'!R9 -> D | E6: VBA Gráfico: | F6: =AtualizarLimitesGrafico("Lâmina_Ações Básica","Base100",F4,F5) -> 
B8: Gráfico de Preço da Ação | F8: Gráfico de Performance Relativa | H8: Gráfico Preço/Lucro | I8: Gráfico Lucro Líquido
B9: Data | C9: Máximo | D9: Mínimo | E9: Fechamento | F9: ='Lâmina_Ações Básica'!F7 -> PETR4 | G9: ='Lâmina_Ações Básica'!T19 -> IBOV | H9: P/L | I9: Data | J9: Lucro Líquido
B10: =_xll.ECONOMATICA($C$2,"high",,$C$4,$C$5,$C$6,,,"true","false",,) -> 2023-09-26 | C10: 28.92364587 | D10: =_xll.ECONOMATICA($C$2,"Low",,$C$4,$C$5,$C$6,,,"FALSE","false") -> 28.38912264 | E10: =_xll.ECONOMATICA($C$2,"close",,$C$4,$C$5,$C$6,,,"FALSE","false") -> 28.38912264 | F10: =_xll.ECONOMATICA($C$2,"close",,$C$4,$C$5,$C$6,,,"false","false",,{"def.defdef=7"}) -> 100 | G10: =_xll.ECONOMATICA($G$9,"close",,$C$4,$C$5,$C$6,,,"FALSE","false",,{"def.defdef=7"}) -> 100 | H10: =_xll.ECONOMATICA(C2,"P/E","12M",$C$4,$C$5,$C$6,,,"false","false") -> 2.791104551 | I10: =_xll.ECONOMATICA($C$2,"Net Income","3M",C4,F2,"Q","INFLATION ADJUSTED",,"true","false") -> 2014-09-30 | J10: -9318940566
B11: 2023-09-27 | C11: 29.28847918 | D11: 28.6606265 | E11: 29.28847918 | F11: 103.1679617 | G11: 100.117012 | H11: 2.879525676 | I11: 2014-12-31 | J11: -45644075354
B12: 2023-09-28 | C12: 29.30544818 | D12: 29.02545982 | E12: 29.22908771 | F12: 102.9587567 | G12: 101.3462508 | H12: 2.873686545 | I12: 2015-03-31 | J12: 8808791600
B13: 2023-09-29 | C13: 29.43271561 | D13: 29.0593978 | E13: 29.39029313 | F13: 103.5265989 | G13: 102.0769496 | H13: 2.889535614 | I13: 2015-06-30 | J13: 858206223.8
B14: 2023-10-02 | C14: 29.50059158 | D14: 28.78789394 | E14: 28.94909936 | F14: 101.9725045 | G14: 100.7561118 | H14: 3.250931023 | I14: 2015-09-30 | J14: -5992276878
B15: 2023-10-03 | C15: 29.04242881 | D15: 28.53335907 | E15: 28.82183192 | F15: 101.524208 | G15: 99.32186116 | H15: 3.236639123 | I15: 2015-12-31 | J15: -57270703426
B16: 2023-10-04 | C16: 28.60123503 | D16: 27.4812816 | E16: 27.676425 | F16: 97.48953975 | G16: 99.48685314 | H16: 3.108012016 | I16: 2016-03-31 | J16: -1882529298
B17: 2023-10-05 | C17: 27.94792886 | D17: 27.39643664 | E17: 27.76975445 | F17: 97.8182905 | G17: 99.20367573 | H17: 3.118492743 | I17: 2016-06-30 | J17: 549404921.8
B18: 2023-10-06 | C18: 28.69456449 | D18: 27.43037462 | E18: 28.43154512 | F18: 100.1494321 | G18: 99.97915817 | H18: 3.192810627 | I18: 2016-09-30 | J18: -24185852440
B19: 2023-10-09 | C19: 29.76361094 | D19: 28.93213036 | E19: 29.6533125 | F19: 104.4530783 | G19: 100.8429907 | H19: 3.330012874 | I19: 2016-12-31 | J19: 3661410324
B20: 2023-10-10 | C20: 29.98420783 | D20: 29.47513809 | E20: 29.87390939 | F20: 105.2301255 | G20: 102.2273786 | H20: 3.354785502 | I20: 2017-03-31 | J20: 6427982728
B21: 2023-10-11 | C21: 29.90784737 | D21: 29.2630257 | E21: 29.79754893 | F21: 104.9611476 | G21: 102.5021667 | H21: 3.346210362 | I21: 2017-06-30 | J21: 455562102.1
B22: 2023-10-12 | H22: 3.346210362 | I22: 2017-09-30 | J22: 381225894.3
B23: 2023-10-13 | C23: 30.8496264 | D23: 30.35752564 | E23: 30.78175043 | F23: 108.4279737 | G23: 101.3666723 | H23: 3.456734394 | I23: 2017-12-31 | J23: -7760724199
B24: 2023-10-16 | C24: 31.22294421 | D24: 30.51024657 | E24: 31.12113026 | F24: 109.623431 | G24: 102.0495225 | H24: 3.494846129 | I24: 2018-03-31 | J24: 9794793820
B25: 2023-10-17 | C25: 31.96109533 | D25: 31.07870778 | E25: 31.96109533 | F25: 112.5821877 | G25: 101.5018377 | H25: 3.589172674 | I25: 2018-06-30 | J25: 13909558573
B26: 2023-10-18 | C26: 32.75863793 | D26: 32.16472323 | E26: 32.68227747 | F26: 115.1225344 | G26: 99.88283914 | H26: 3.670160112 | I26: 2018-09-30 | J26: 9109779323
B27: 2023-10-19 | C27: 32.63985499 | D27: 32.17320773 | E27: 32.52955654 | F27: 114.5845786 | G27: 99.83437751 | H27: 3.653009831 | I27: 2018-12-31 | J27: 2870932802
B28: 2023-10-20 | C28: 32.97075032 | D28: 31.72352945 | E28: 32.11381626 | F28: 113.1201435 | G28: 99.09088465 | H28: 3.606322955 | I28: 2019-03-31 | J28: 5423842538
B29: 2023-10-23 | C29: 31.22294421 | D29: 29.91633187 | E29: 29.99269233 | F29: 105.6485356 | G29: 98.76620748 | H29: 3.36812461 | I29: 2019-06-30 | J29: 25205656371
B30: 2023-10-24 | C30: 30.70538997 | D30: 29.83997141 | E30: 30.4423706 | F30: 107.2325164 | G30: 99.62210611 | H30: 3.418622659 | I30: 2019-09-30 | J30: 12109065368
B31: 2023-10-25 | C31: 30.78175043 | D31: 30.33207216 | E31: 30.60357602 | F31: 107.8003586 | G31: 98.80600837 | H31: 3.436725733 | I31: 2019-12-31 | J31: 10675747673
B32: 2023-10-26 | C32: 30.48479308 | D32: 29.82300241 | E32: 30.28964968 | F32: 106.6945607 | G32: 100.5109138 | H32: 3.401472378 | I32: 2020-03-31 | J32: -63201757998
B33: 2023-10-27 | C33: 30.93447135 | D33: 29.83997141 | E33: 30.06905279 | F33: 105.9175134 | G33: 99.21879919 | H33: 3.37669975 | I33: 2020-06-30 | J33: -3548995714
B34: 2023-10-30 | C34: 30.30661867 | D34: 29.57695204 | E34: 29.76361094 | F34: 104.8416019 | G34: 98.54465358 | H34: 3.342399188 | I34: 2020-09-30 | J34: -1997527799
B35: 2023-10-31 | C35: 29.8484559 | D35: 29.2630257 | E35: 29.47513809 | F35: 103.8254632 | G35: 99.08071769 | H35: 3.310004213 | I35: 2020-12-31 | J35: 75032050748
B36: 2023-11-01 | C36: 30.15389775 | D36: 29.61089002 | E36: 29.79754893 | F36: 104.9611476 | G36: 100.7526965 | H36: 3.346210362 | I36: 2021-03-31 | J36: 1432648803
B37: 2023-11-02 | H37: 3.346210362 | I37: 2021-06-30 | J37: 51741701297
B38: 2023-11-03 | C38: 30.4508551 | D38: 29.73815746 | E38: 30.15389775 | F38: 106.2163778 | G38: 103.4735273 | H38: 3.386227684 | I38: 2021-09-30 | J38: 36497702098
B39: 2023-11-06 | C39: 30.65448299 | D39: 30.12844426 | E39: 30.12844426 | F39: 106.1267185 | G39: 103.7110892 | H39: 3.383369304 | I39: 2021-12-31 | J39: 35861176327
B40: 2023-11-07 | C40: 30.0520838 | D40: 29.40726212 | E40: 29.62785901 | F40: 104.363419 | G40: 104.4438896 | H40: 3.327154494 | I40: 2022-03-31 | J40: 49150882311
B41: 2023-11-08 | C41: 29.52604507 | D41: 28.77092495 | E41: 28.99152184 | F41: 102.1219366 | G41: 104.3638588 | H41: 3.25569499 | I41: 2022-06-30 | J41: 58627358914
B42: 2023-11-09 | C42: 29.82300241 | D42: 29.15272725 | E42: 29.59392103 | F42: 104.2438733 | G42: 104.2390442 | H42: 3.32334332 | I42: 2022-09-30 | J42: 50409770481
B43: 2023-11-10 | C43: 29.74664195 | D43: 29.27999469 | E43: 29.4581691 | F43: 103.7656904 | G43: 105.582379 | H43: 3.308098626 | I43: 2022-12-31 | J43: 46637398666
B44: 2023-11-13 | C44: 30.33207216 | D44: 29.41574662 | E44: 30.28116518 | F44: 106.6646742 | G44: 105.4440435 | H44: 3.400519585 | I44: 2023-03-31 | J44: 40215837337
B45: 2023-11-14 | C45: 30.74781245 | D45: 30.11147527 | E45: 30.69690547 | F45: 108.1291094 | G45: 107.8571333 | H45: 3.44720646 | I45: 2023-06-30 | J45: 30106754385
B46: 2023-11-15 | H46: 3.44720646 | I46: 2023-09-30 | J46: 27681289386
B47: 2023-11-16 | C47: 30.95992484 | D47: 30.11995976 | E47: 30.16238224 | F47: 106.2462642 | G47: 109.1474702 | H47: 3.387180477 | I47: 2023-12-31 | J47: 31928589704
B48: 2023-11-17 | C48: 31.32475816 | D48: 30.39146363 | E48: 31.14658375 | F48: 109.7130902 | G48: 109.2647887 | H48: 3.49770451 | I48: 2024-03-31 | J48: 24035883858
B49: 2023-11-20 | C49: 31.57929303 | D49: 30.77326593 | E49: 31.17203723 | F49: 109.8027496 | G49: 110.3014946 | H49: 3.50056289 | I49: 2024-06-30 | J49: -2614376021
B50: 2023-11-21 | C50: 31.00234732 | D50: 30.46782409 | E50: 30.96840934 | F50: 109.0854752 | G50: 110.0116092 | H50: 3.477695849 | I50: 2024-09-30
B51: 2023-11-22 | C51: 30.97312005 | D51: 30.17148355 | E51: 30.97312005 | F51: 109.1020686 | G51: 110.3700099 | H51: 3.350021535
B52: 2023-11-23 | C52: 31.05240278 | D52: 30.66479832 | E52: 30.98192924 | F52: 109.1330987 | G52: 110.8432858 | H52: 3.350974329
B53: 2023-11-24 | C53: 31.55452674 | D53: 30.5767064 | E53: 31.07002117 | F53: 109.4434004 | G53: 109.9163673 | H53: 3.360502262
B54: 2023-11-27 | C54: 31.18454067 | D54: 30.61194317 | E54: 30.89383732 | F54: 108.8227971 | G54: 110.1039263 | H54: 3.341446395
B55: 2023-11-28 | C55: 31.37834289 | D55: 30.96431086 | E55: 31.36072451 | F55: 110.4673959 | G55: 110.8105081 | H55: 3.391944444
B56: 2023-11-29 | C56: 31.73951978 | D56: 30.77931782 | E56: 31.0347844 | F56: 109.3192797 | G56: 110.4841496 | H56: 3.356691089
B57: 2023-11-30 | C57: 31.64261866 | D57: 31.04359359 | E57: 31.63380947 | F57: 111.4293311 | G57: 111.5047687 | H57: 3.421481039
B58: 2023-12-01 | C58: 31.7130922 | D58: 31.29906017 | E58: 31.42238886 | F58: 110.6846071 | G58: 112.2524387 | H58: 3.398613998
B59: 2023-12-04 | C59: 31.31667855 | D59: 30.70003509 | E59: 30.75289024 | F59: 108.3263144 | G59: 111.0421064 | H59: 3.326201701
B60: 2023-12-05 | C60: 30.98192924 | D60: 30.55027882 | E60: 30.61194317 | F60: 107.8298317 | G60: 111.1300799 | H60: 3.310957006
B61: 2023-12-06 | C61: 30.65598913 | D61: 29.51079413 | E61: 29.51079413 | F61: 103.9510608 | G61: 110.0086493 | H61: 3.191857834
B62: 2023-12-07 | C62: 30.10981921 | D62: 29.10557129 | E62: 29.44032059 | F62: 103.7028194 | G62: 110.3474779 | H62: 3.184235487
B63: 2023-12-08 | C63: 30.42695013 | D63: 29.49317575 | E63: 30.38290417 | F63: 107.0230474 | G63: 111.2967445 | H63: 3.286184379
B64: 2023-12-11 | C64: 30.55908801 | D64: 30.16267436 | E64: 30.26838467 | F64: 106.6196552 | G64: 111.1416042 | H64: 3.273798065
B65: 2023-12-12 | C65: 30.47980528 | D65: 29.7750699 | E65: 30.02172729 | F65: 105.7508105 | G65: 110.6920337 | H65: 3.24711985
B66: 2023-12-13 | C66: 30.49742367 | D66: 30.07458244 | E66: 30.45337771 | F66: 107.2712887 | G66: 113.3734927 | H66: 3.293806726
B67: 2023-12-14 | C67: 31.4840532 | D67: 30.6912259 | E67: 31.11406713 | F67: 109.5985512 | G67: 114.5793501 | H67: 3.365266229
B68: 2023-12-15 | C68: 31.52809916 | D68: 30.83217297 | E68: 31.18454067 | F68: 109.8467926 | G68: 114.0145278 | H68: 3.372888576
B69: 2023-12-18 | C69: 31.97736797 | D69: 31.34310613 | E69: 31.57214513 | F69: 111.21212 | G69: 114.7910348 | H69: 3.414811485
B70: 2023-12-19 | C70: 31.93332201 | D70: 31.54571755 | E70: 31.93332201 | F70: 112.4843568 | G70: 115.4627722 | H70: 3.453876014
B71: 2023-12-20 | C71: 32.36497243 | D71: 31.96855878 | E71: 32.04784151 | F71: 112.887749 | G71: 114.5461433 | H71: 3.466262328
B72: 2023-12-21 | C72: 32.31211728 | D72: 31.77475655 | E72: 32.0566507 | F72: 112.9187792 | G72: 115.7527276 | H72: 3.467215121
B73: 2023-12-22 | C73: 32.41782758 | D73: 32.03903232 | E73: 32.36497243 | F73: 114.004835 | G73: 116.2526863 | H73: 3.50056289
B74: 2023-12-25 | H74: 3.50056289
B75: 2023-12-26 | C75: 32.91995154 | D75: 32.44425516 | E75: 32.88471477 | F75: 115.8356149 | G75: 116.9357291 | H75: 3.556777699
B76: 2023-12-27 | C76: 32.9728067 | D76: 32.70853093 | E76: 32.91114235 | F76: 115.9287054 | G76: 117.5143964 | H76: 3.55963608
B77: 2023-12-28 | C77: 32.91114235 | D77: 32.6292482 | E77: 32.80543204 | F77: 115.5563434 | G77: 117.5069704 | H77: 3.548202559
B78: 2023-12-29 | H78: 3.548202559
B79: 2024-01-01 | H79: 3.896166391
B80: 2024-01-02 | C80: 33.37802954 | D80: 32.94637912 | E80: 33.28112843 | F80: 117.2319724 | G80: 116.203384 | H80: 3.952662896
B81: 2024-01-03 | C81: 34.46156019 | D81: 33.18422731 | E81: 34.32061312 | F81: 120.8935322 | G81: 116.3236361 | H81: 4.076118222
B82: 2024-01-04 | C82: 34.66417162 | D82: 33.92419946 | E82: 34.02990977 | F82: 119.8695367 | G82: 114.915464 | H82: 4.04159258
B83: 2024-01-05 | C83: 34.47917858 | D83: 33.83610754 | E83: 34.1091925 | F83: 120.1488082 | G83: 115.6134114 | H83: 4.051008665
B84: 2024-01-08 | C84: 33.85372593 | D84: 33.13137216 | E84: 33.85372593 | F84: 119.2489333 | G84: 115.9668643 | H84: 4.020667949
B85: 2024-01-09 | C85: 34.13562008 | D85: 33.50135823 | E85: 33.56302258 | F85: 118.2249378 | G85: 115.1087151 | H85: 3.986142307
B86: 2024-01-10 | C86: 33.71277885 | D86: 33.04328024 | E86: 33.25470085 | F86: 117.1388819 | G86: 114.5784744 | H86: 3.949524202
B87: 2024-01-11 | C87: 33.60706854 | D87: 33.21065489 | E87: 33.536595 | F87: 118.1318473 | G87: 114.4100409 | H87: 3.983003612
B88: 2024-01-12 | C88: 34.11800169 | D88: 33.62468693 | E88: 33.62468693 | F88: 118.442149 | G88: 114.7068356 | H88: 3.993465928
B89: 2024-01-15 | C89: 34.02110058 | D89: 33.35160197 | E89: 33.98586381 | F89: 119.7143858 | G89: 115.1737976 | H89: 4.036361422
B90: 2024-01-16 | C90: 34.17085685 | D90: 33.5454042 | E90: 33.56302258 | F90: 118.2249378 | G90: 113.2237117 | H90: 3.986142307
B91: 2024-01-17 | C91: 33.60706854 | D91: 33.3163652 | E91: 33.36922035 | F91: 117.5422741 | G91: 112.5492333 | H91: 3.963125212
B92: 2024-01-18 | C92: 33.59825935 | D92: 33.0873262 | E92: 33.23708247 | F92: 117.0768216 | G92: 111.4913003 | H92: 3.947431738
B93: 2024-01-19 | C93: 33.38683873 | D93: 32.79662285 | E93: 33.06089862 | F93: 116.4562183 | G93: 111.7714478 | H93: 3.926507107
B94: 2024-01-22 | C94: 33.307556 | D94: 32.79662285 | E94: 33.21065489 | F94: 116.9837311 | G94: 110.8658791 | H94: 3.944293044
B95: 2024-01-23 | C95: 33.80087077 | D95: 32.9728067 | E95: 33.62468693 | F95: 118.442149 | G95: 112.3204023 | H95: 3.993465928
B96: 2024-01-24 | C96: 33.95062704 | D96: 33.27231923 | E96: 33.36922035 | F96: 117.5422741 | G96: 111.9291189 | H96: 3.963125212
B97: 2024-01-25 | C97: 34.60250727 | D97: 33.58945016 | E97: 34.60250727 | F97: 121.8864975 | G97: 112.2382698 | H97: 4.109597633
B98: 2024-01-26 | C98: 35.31605184 | D98: 34.27656716 | E98: 35.20153234 | F98: 123.9965489 | G98: 112.9376007 | H98: 4.18074138
B99: 2024-01-29 | C99: 35.75651146 | D99: 35.08701284 | E99: 35.73889307 | F99: 125.8893891 | G99: 112.5306946 | H99: 4.244561506
B100: 2024-01-30 | C100: 35.88864934 | D100: 35.28081507 | E100: 35.51866327 | F100: 125.113635 | G100: 111.5666724 | H100: 4.218405717
B101: 2024-01-31 | C101: 36.32910896 | D101: 35.39533457 | E101: 35.63318277 | F101: 125.5170271 | G101: 111.8735815 | H101: 4.232006727
B102: 2024-02-01 | C102: 36.89289726 | D102: 35.826985 | E102: 36.6198123 | F102: 128.9924059 | G102: 112.5117443 | H102: 4.349184664
B103: 2024-02-02 | C103: 36.80480534 | D103: 36.13530673 | E103: 36.14411592 | F103: 127.3167768 | G103: 111.3744022 | H103: 4.292688159
B104: 2024-02-05 | C104: 36.71671342 | D104: 36.05602399 | E104: 36.30268138 | F104: 127.8753198 | G104: 111.734528 | H104: 4.311520327
B105: 2024-02-06 | C105: 37.3069293 | D105: 36.35553653 | E105: 36.63743069 | F105: 129.0544662 | G105: 114.2064916 | H105: 4.351277127
B106: 2024-02-07 | C106: 37.17479141 | D106: 36.48767442 | E106: 37.17479141 | F106: 130.9473064 | G106: 113.798053 | H106: 4.415097253
B107: 2024-02-08 | C107: 37.39502122 | D107: 36.87527888 | E107: 36.87527888 | F107: 129.8922807 | G107: 112.2804701 | H107: 4.37952538
B108: 2024-02-09 | C108: 37.28931091 | D108: 36.38196411 | E108: 36.38196411 | F108: 128.1545914 | G108: 112.1130174 | H108: 4.320936411
B109: 2024-02-12 | H109: 4.320936411
B110: 2024-02-13 | H110: 4.320936411
B111: 2024-02-14 | C111: 36.47005603 | D111: 35.99435965 | E111: 36.10887915 | F111: 127.1926562 | G111: 111.2308212 | H111: 4.288503232
B112: 2024-02-15 | C112: 37.26288334 | D112: 35.98555046 | E112: 37.26288334 | F112: 131.2576081 | G112: 111.9189869 | H112: 4.425559569
B113: 2024-02-16 | C113: 37.78262568 | D113: 37.05146272 | E113: 37.60644184 | F113: 132.4677846 | G113: 112.72617 | H113: 4.4663626
B114: 2024-02-19 | C114: 37.82667164 | D114: 37.49192234 | E114: 37.79143487 | F114: 133.1194181 | G114: 112.9975166 | H114: 4.488333464
B115: 2024-02-20 | C115: 37.72096134 | D115: 37.08669949 | E115: 37.39502122 | F115: 131.7230606 | G115: 113.7684629 | H115: 4.441253043
B116: 2024-02-21 | C116: 37.63286941 | D116: 37.11312707 | E116: 37.44787637 | F116: 131.9092416 | G116: 113.8695808 | H116: 4.447530432
B117: 2024-02-22 | C117: 37.59763264 | D117: 36.82242372 | E117: 37.16598222 | F117: 130.9162763 | G117: 114.0525773 | H117: 4.414051022
B118: 2024-02-23 | C118: 37.21002818 | D118: 36.65504907 | E118: 36.91051565 | F118: 130.0164014 | G118: 113.3329037 | H118: 4.383710306
B119: 2024-02-26 | C119: 37.64167861 | D119: 36.8488513 | E119: 37.60644184 | F119: 132.4677846 | G119: 113.4995682 | H119: 4.4663626
B120: 2024-02-27 | C120: 37.72096134 | D120: 37.33335688 | E120: 37.55358668 | F120: 132.2816036 | G120: 115.3213193 | H120: 4.460085211
B121: 2024-02-28 | C121: 37.82667164 | D121: 35.08701284 | E121: 35.61556438 | F121: 125.4549668 | G121: 113.9780371 | H121: 4.229914264
B122: 2024-02-29 | C122: 36.32910896 | D122: 35.10463123 | E122: 35.36009781 | F122: 124.5550919 | G122: 112.9837505 | H122: 4.199573548
B123: 2024-03-01 | C123: 35.98555046 | D123: 35.36009781 | E123: 35.39533457 | F123: 124.6792126 | G123: 113.1241701 | H123: 4.203758475
B124: 2024-03-04 | C124: 35.89745853 | D124: 35.2543875 | E124: 35.30724265 | F124: 124.3689109 | G124: 112.388725 | H124: 4.193296159
B125: 2024-03-05 | C125: 35.56270923 | D125: 34.89321061 | E125: 35.20153234 | F125: 123.9965489 | G125: 112.1764273 | H125: 4.18074138
B126: 2024-03-06 | C126: 35.97674127 | D126: 35.33367023 | E126: 35.97674127 | F126: 126.7272037 | G126: 112.8700924 | H126: 4.272809759
B127: 2024-03-07 | C127: 36.06483319 | D127: 35.4834265 | E127: 35.58032761 | F127: 125.3308461 | G127: 112.3880419 | H127: 4.225729338
B128: 2024-03-08 | C128: 32.64686658 | D128: 30.9202649 | E128: 31.81880251 | F128: 112.0809646 | G128: 111.2767959 | H128: 3.778988455
B129: 2024-03-11 | C129: 33.24589166 | D129: 31.09644874 | E129: 31.40477047 | F129: 110.6225468 | G129: 110.4472998 | H129: 3.729815571
B130: 2024-03-12 | C130: 32.79662285 | D130: 31.85403928 | E130: 32.43544597 | F130: 114.2530764 | G130: 111.7996368 | H130: 3.852224665
B131: 2024-03-13 | C131: 32.88471477 | D131: 31.98617716 | E131: 32.04784151 | F131: 112.887749 | G131: 112.0958097 | H131: 3.806190476
B132: 2024-03-14 | C132: 32.52353789 | D132: 31.84523009 | E132: 31.90689443 | F132: 112.3912663 | G132: 111.8190162 | H132: 3.78945077
B133: 2024-03-15 | C133: 32.10950585 | D133: 31.66023705 | E133: 31.99498636 | F133: 112.701568 | G133: 110.9887057 | H133: 3.799913086
B134: 2024-03-18 | C134: 32.34735405 | D134: 31.27263259 | E134: 32.01260474 | F134: 112.7636283 | G134: 111.1746797 | H134: 3.802005549
B135: 2024-03-19 | C135: 32.46187355 | D135: 31.32548774 | E135: 31.77475655 | F135: 111.9258138 | G135: 111.6779223 | H135: 3.773757297
B136: 2024-03-20 | C136: 32.36497243 | D136: 31.54571755 | E136: 32.32973566 | F136: 113.8807144 | G136: 113.0755333 | H136: 3.839669886
B137: 2024-03-21 | C137: 32.64686658 | D137: 31.43119805 | E137: 31.44881643 | F137: 110.7776976 | G137: 112.2293726 | H137: 3.735046728
B138: 2024-03-22 | C138: 31.90689443 | D138: 31.21096824 | E138: 31.75713816 | F138: 111.8637535 | G138: 111.2385362 | H138: 3.771664834
B139: 2024-03-25 | C139: 32.44425516 | D139: 31.85403928 | E139: 32.24164374 | F139: 113.5704127 | G139: 111.1547923 | H139: 3.82920757
B140: 2024-03-26 | C140: 32.30330808 | D140: 31.86284847 | E140: 31.9421312 | F140: 112.515387 | G140: 111.0948502 | H140: 3.793635697
B141: 2024-03-27 | C141: 32.29449889 | D141: 31.81880251 | E141: 32.19759778 | F141: 113.4152618 | G141: 111.8195854 | H141: 3.823976412
B142: 2024-03-28 | C142: 33.05208943 | D142: 32.12712424 | E142: 32.91114235 | F142: 115.9287054 | G142: 112.1834242 | H142: 3.90872117
B143: 2024-03-29 | H143: 3.90872117
B144: 2024-04-01 | C144: 33.21946408 | D144: 32.77900447 | E144: 33.16660893 | F144: 116.8285803 | G144: 111.2064416 | H144: 4.447155664
B145: 2024-04-02 | C145: 34.04752816 | D145: 33.27231923 | E145: 34.02110058 | F145: 119.8385065 | G145: 111.6951474 | H145: 4.561730458
B146: 2024-04-03 | C146: 34.36465908 | D146: 33.66873289 | E146: 33.84491673 | F146: 119.2179031 | G146: 111.4936209 | H146: 4.538106789
B147: 2024-04-04 | C147: 34.77869112 | D147: 32.9728067 | E147: 33.36922035 | F147: 117.5422741 | G147: 111.5891956 | H147: 4.474322883
B148: 2024-04-05 | C148: 33.97705462 | D148: 32.7437677 | E148: 33.56302258 | F148: 118.2249378 | G148: 111.0356436 | H148: 4.500308919
B149: 2024-04-08 | C149: 34.40870504 | D149: 33.23708247 | E149: 34.02990977 | F149: 119.8695367 | G149: 112.8411328 | H149: 4.562911641
B150: 2024-04-09 | C150: 34.47917858 | D150: 33.52778581 | E150: 34.11800169 | F150: 120.1798383 | G150: 113.7459222 | H150: 4.574723476
B151: 2024-04-10 | C151: 34.99892092 | D151: 34.05633735 | E151: 34.87559223 | F151: 122.8484327 | G151: 112.1375722 | H151: 4.676305252
B152: 2024-04-11 | C152: 35.0253485 | D152: 34.53203373 | E152: 34.62012565 | F152: 121.9485579 | G152: 111.5618911 | H152: 4.642050932
B153: 2024-04-12 | C153: 35.28081507 | D153: 34.09157412 | E153: 34.30299473 | F153: 120.8314718 | G153: 110.2918881 | H153: 4.599528328
B154: 2024-04-15 | C154: 34.75226354 | D154: 34.02990977 | E154: 34.62893485 | F154: 121.979588 | G154: 109.7557802 | H154: 4.643232115
B155: 2024-04-16 | C155: 34.98130254 | D155: 34.31180392 | E155: 34.78750031 | F155: 122.5381311 | G155: 108.9280005 | H155: 4.664493417
B156: 2024-04-17 | C156: 35.19272315 | D156: 34.65536242 | E156: 35.04296688 | F156: 123.4380059 | G156: 108.7375605 | H156: 4.698747737
B157: 2024-04-18 | C157: 35.75651146 | D157: 34.92844738 | E157: 35.10463123 | F157: 123.6552171 | G157: 108.7594794 | H157: 4.707016021
B158: 2024-04-19 | C158: 36.17935269 | D158: 35.09582204 | E158: 35.7036563 | F158: 125.7652685 | G158: 109.5722407 | H158: 4.787336495
B159: 2024-04-22 | C159: 36.63743069 | D159: 35.69484711 | E159: 36.55814796 | F159: 128.7751947 | G159: 109.9653106 | H159: 4.901911289
B160: 2024-04-23 | C160: 36.67266746 | D160: 36.08245157 | E160: 36.48767442 | F160: 128.5269534 | G160: 109.5930563 | H160: 4.892461822
B161: 2024-04-24 | C161: 36.98979838 | D161: 36.30268138 | E161: 36.32029976 | F161: 127.9373802 | G161: 109.2363107 | H161: 4.870019336
B162: 2024-04-25 | C162: 37.4214488 | D162: 36.18816188 | E162: 37.1924098 | F162: 131.0093668 | G162: 109.1530222 | H162: 4.986956497
B163: 2024-04-26 | C163: 37.83539746 | D163: 37.19243115 | E163: 37.50033051 | F163: 132.09401 | G163: 110.7999558 | H163: 4.891280638
B164: 2024-04-29 | C164: 38.1704644 | D164: 37.41882774 | E164: 38.1704644 | F164: 134.4545405 | G164: 111.5228696 | H164: 4.978688213
B165: 2024-04-30 | C165: 38.22479958 | D165: 37.69050364 | E165: 38.05273818 | F165: 134.0398527 | G165: 110.2727101 | H165: 4.963332828
B166: 2024-05-01 | H166: 4.963332828
B167: 2024-05-02 | C167: 38.37874926 | D167: 37.88973264 | E167: 38.197632 | F167: 134.5502377 | G167: 111.3218598 | H167: 4.982231763
B168: 2024-05-03 | C168: 38.46803548 | D168: 37.29574834 | E168: 37.71172119 | F168: 132.8386286 | G168: 112.5359576 | H168: 4.711740755
B169: 2024-05-06 | C169: 38.15605584 | D169: 37.55100441 | E169: 37.96697727 | F169: 133.737762 | G169: 112.4983197 | H169: 4.743632708
B170: 2024-05-07 | C170: 38.43021977 | D170: 37.81571441 | E170: 38.43021977 | F170: 135.3695225 | G170: 113.1505376 | H170: 4.801510697
B171: 2024-05-08 | C171: 39.07308691 | D171: 38.1087862 | E171: 39.01636334 | F171: 137.4341991 | G171: 113.3873376 | H171: 4.87474407
B172: 2024-05-09 | C172: 39.55523727 | D172: 38.7043837 | E172: 39.39452049 | F172: 138.7662486 | G172: 112.2554424 | H172: 4.921991408
B173: 2024-05-10 | C173: 39.79158549 | D173: 39.2338037 | E173: 39.30943513 | F173: 138.4665374 | G173: 111.7398523 | H173: 4.911360757
B174: 2024-05-13 | C174: 39.67813834 | D174: 39.24325763 | E174: 39.34725084 | F174: 138.5997424 | G174: 112.2260624 | H174: 4.916085491
B175: 2024-05-14 | C175: 39.04472513 | D175: 37.96697727 | E175: 38.6382062 | F175: 136.1021497 | G175: 112.5419299 | H175: 4.827496733
B176: 2024-05-15 | C176: 36.69069691 | D176: 35.45223226 | E176: 36.30308583 | F176: 127.8767445 | G176: 112.1146724 | H176: 4.535744422
B177: 2024-05-16 | C177: 36.53943405 | D177: 35.20643012 | E177: 35.27260761 | F177: 124.2469098 | G177: 112.3388797 | H177: 4.406995427
B178: 2024-05-17 | C178: 35.37660083 | D178: 34.51629333 | E178: 34.68646404 | F178: 122.1822332 | G178: 112.2224895 | H178: 4.333762053
B179: 2024-05-20 | C179: 35.20643012 | D179: 34.62974047 | E179: 34.74318761 | F179: 122.3820407 | G179: 111.8723906 | H179: 4.340849154
B180: 2024-05-21 | C180: 35.06462119 | D180: 34.5730169 | E180: 34.67701011 | F180: 122.148932 | G180: 111.5752018 | H180: 4.33258087
B181: 2024-05-22 | C181: 35.41441654 | D181: 34.42175404 | E181: 35.14970654 | F181: 123.8139938 | G181: 110.0326262 | H181: 4.391640042
B182: 2024-05-23 | C182: 35.65076476 | D182: 34.5730169 | E182: 34.79991118 | F182: 122.5818481 | G182: 109.226424 | H182: 4.347936255
B183: 2024-05-24 | C183: 35.15916047 | D183: 34.5730169 | E183: 34.61083261 | F183: 121.9158234 | G183: 108.855273 | H183: 4.324312586
B184: 2024-05-27 | C184: 35.05516726 | D184: 34.68646404 | E184: 34.98898976 | F184: 123.2478728 | G184: 109.0217537 | H184: 4.371559923
B185: 2024-05-28 | C185: 36.19909262 | D185: 35.3671469 | E185: 35.73585012 | F185: 125.8786704 | G185: 108.3946248 | H185: 4.464873415
B186: 2024-05-29 | C186: 35.84929726 | D186: 35.39550869 | E186: 35.68858047 | F186: 125.7121642 | G186: 107.4556391 | H186: 4.458967498
B187: 2024-05-30 | H187: 4.458967498
B188: 2024-05-31 | C188: 36.76632833 | D188: 35.8303894 | E188: 36.67178905 | F188: 129.1754927 | G188: 106.9221671 | H188: 4.581810576
B189: 2024-06-03 | C189: 36.80414405 | D189: 36.34090155 | E189: 36.47325655 | F189: 128.4761668 | G189: 106.8639238 | H189: 4.557005724
B190: 2024-06-04 | C190: 36.33144762 | D190: 35.64131083 | E190: 36.06673762 | F190: 127.0442136 | G190: 106.6629315 | H190: 4.506214836
B191: 2024-06-05 | C191: 36.33144762 | D191: 35.99110619 | E191: 36.11400726 | F191: 127.2107198 | G191: 106.3172636 | H191: 4.512120753
B192: 2024-06-06 | C192: 36.60561155 | D192: 36.18018476 | E192: 36.28417797 | F192: 127.810142 | G192: 107.6233545 | H192: 4.533382055
B193: 2024-06-07 | C193: 36.36926333 | D193: 34.84718083 | E193: 34.92281226 | F193: 123.0147641 | G193: 105.7566884 | H193: 4.363291639
B194: 2024-06-10 | C194: 35.98165226 | D194: 35.09298297 | E194: 35.45223226 | F194: 124.8796333 | G194: 105.749963 | H194: 4.429437912
B195: 2024-06-11 | C195: 35.92492869 | D195: 35.45223226 | E195: 35.60349512 | F195: 125.4124531 | G195: 106.5166884 | H195: 4.448336847
B196: 2024-06-12 | C196: 36.02474865 | D196: 34.62459648 | E196: 34.82878534 | F196: 122.6835566 | G196: 105.028827 | H196: 4.230999094
B197: 2024-06-13 | C197: 35.18854666 | D197: 33.88562727 | E197: 34.47874729 | F197: 121.450556 | G197: 104.7061376 | H197: 4.18847649
B198: 2024-06-14 | C198: 34.51764041 | D198: 33.20499775 | E198: 33.72033153 | F198: 118.7790548 | G198: 104.7891985 | H198: 4.096344181
B199: 2024-06-17 | C199: 34.15787909 | D199: 33.32167709 | E199: 33.84673416 | F199: 119.224305 | G199: 104.3298726 | H199: 4.111699566
B200: 2024-06-18 | C200: 35.13993026 | D200: 33.85645744 | E200: 34.90657157 | F200: 122.9575567 | G200: 104.7612284 | H200: 4.240448561
B201: 2024-06-19 | C201: 35.12048371 | D201: 34.58570336 | E201: 34.93574141 | F201: 123.0603067 | G201: 105.313712 | H201: 4.243992111
... 71 more rows

Sheet Base
D1: Planilha Auxiliar Não Modificar
B3: =_xll.ECOSECURITIES("stock","active",,"bra","xbsp",,,"Partic in Ibovespa>0") -> Código | C3: =_xll.ECONOMATICA($B$4:$B$201,"TICKER") -> Código | D3: =_xll.ECONOMATICA($B$4:$B$201,"NAME") -> Nome | E3: =_xll.ECONOMATICA($B$4:$B$201,"CLASS") -> Classe | F3: Nome e Classe
B4: ALOS3<XBSP> | C4: ALOS3 | D4: Allos | E4: ON | F4: =CONCATENATE(D4," ",E4) -> Allos ON
B5: ALPA4<XBSP> | C5: ALPA4 | D5: Alpargatas | E5: PN | F5: =CONCATENATE(D5," ",E5) -> Alpargatas PN
B6: ABEV3<XBSP> | C6: ABEV3 | D6: Ambev S/A | E6: ON | F6: Ambev S/A ON
B7: ASAI3<XBSP> | C7: ASAI3 | D7: Assai | E7: ON | F7: Assai ON
B8: AURE3<XBSP> | C8: AURE3 | D8: Auren | E8: ON | F8: Auren ON
B9: AZUL4<XBSP> | C9: AZUL4 | D9: Azul | E9: PN | F9: Azul PN
B10: AZZA3<XBSP> | C10: AZZA3 | D10: Azzas 2154 | E10: ON | F10: Azzas 2154 ON
B11: B3SA3<XBSP> | C11: B3SA3 | D11: B3 | E11: ON | F11: B3 ON
B12: BBSE3<XBSP> | C12: BBSE3 | D12: BBSeguridade | E12: ON | F12: BBSeguridade ON
B13: BBDC3<XBSP> | C13: BBDC3 | D13: Bradesco | E13: ON | F13: Bradesco ON
B14: BBDC4<XBSP> | C14: BBDC4 | D14: Bradesco | E14: PN | F14: Bradesco PN
B15: BRAP4<XBSP> | C15: BRAP4 | D15: Bradespar | E15: PN | F15: Bradespar PN
B16: BBAS3<XBSP> | C16: BBAS3 | D16: Brasil | E16: ON | F16: Brasil ON
B17: BRKM5<XBSP> | C17: BRKM5 | D17: Braskem | E17: PNA | F17: Braskem PNA
B18: BRAV3<XBSP> | C18: BRAV3 | D18: Brava | E18: ON | F18: Brava ON
B19: BRFS3<XBSP> | C19: BRFS3 | D19: BRF SA | E19: ON | F19: BRF SA ON
B20: BPAC11<XBSP> | C20: BPAC11 | D20: Btgp Banco | E20: UNT | F20: Btgp Banco UNT
B21: CXSE3<XBSP> | C21: CXSE3 | D21: Caixa Seguri | E21: ON | F21: Caixa Seguri ON
B22: CRFB3<XBSP> | C22: CRFB3 | D22: Carrefour BR | E22: ON | F22: Carrefour BR ON
B23: CCRO3<XBSP> | C23: CCRO3 | D23: CCR SA | E23: ON | F23: CCR SA ON
B24: CMIG4<XBSP> | C24: CMIG4 | D24: Cemig | E24: PN | F24: Cemig PN
B25: COGN3<XBSP> | C25: COGN3 | D25: Cogna ON | E25: ON | F25: Cogna ON ON
B26: CPLE6<XBSP> | C26: CPLE6 | D26: Copel | E26: PNB | F26: Copel PNB
B27: CSAN3<XBSP> | C27: CSAN3 | D27: Cosan | E27: ON | F27: Cosan ON
B28: CPFE3<XBSP> | C28: CPFE3 | D28: CPFL Energia | E28: ON | F28: CPFL Energia ON
B29: CMIN3<XBSP> | C29: CMIN3 | D29: Csn Mineracao | E29: ON | F29: Csn Mineracao ON
B30: CVCB3<XBSP> | C30: CVCB3 | D30: Cvc Brasil | E30: ON | F30: Cvc Brasil ON
B31: CYRE3<XBSP> | C31: CYRE3 | D31: Cyrela Realt | E31: ON | F31: Cyrela Realt ON
B32: ELET3<XBSP> | C32: ELET3 | D32: Eletrobras | E32: ON | F32: Eletrobras ON
B33: ELET6<XBSP> | C33: ELET6 | D33: Eletrobras | E33: PNB | F33: Eletrobras PNB
B34: EMBR3<XBSP> | C34: EMBR3 | D34: Embraer | E34: ON | F34: Embraer ON
B35: ENGI11<XBSP> | C35: ENGI11 | D35: Energisa | E35: UNT N2 | F35: Energisa UNT N2
B36: ENEV3<XBSP> | C36: ENEV3 | D36: Eneva | E36: ON | F36: Eneva ON
B37: EGIE3<XBSP> | C37: EGIE3 | D37: Engie Brasil | E37: ON | F37: Engie Brasil ON
B38: EQTL3<XBSP> | C38: EQTL3 | D38: Equatorial | E38: ON | F38: Equatorial ON
B39: EZTC3<XBSP> | C39: EZTC3 | D39: Eztec | E39: ON | F39: Eztec ON
B40: FLRY3<XBSP> | C40: FLRY3 | D40: Fleury | E40: ON | F40: Fleury ON
B41: GGBR4<XBSP> | C41: GGBR4 | D41: Gerdau | E41: PN | F41: Gerdau PN
B42: GOAU4<XBSP> | C42: GOAU4 | D42: Gerdau Met | E42: PN | F42: Gerdau Met PN
B43: NTCO3<XBSP> | C43: NTCO3 | D43: Grupo Natura | E43: ON | F43: Grupo Natura ON
B44: HAPV3<XBSP> | C44: HAPV3 | D44: Hapvida | E44: ON | F44: Hapvida ON
B45: HYPE3<XBSP> | C45: HYPE3 | D45: Hypera | E45: ON | F45: Hypera ON
B46: IGTI11<XBSP> | C46: IGTI11 | D46: Iguatemi SA | E46: UNT | F46: Iguatemi SA UNT
B47: IRBR3<XBSP> | C47: IRBR3 | D47: Irbbrasil Re | E47: ON | F47: Irbbrasil Re ON
B48: ITSA4<XBSP> | C48: ITSA4 | D48: Itausa | E48: PN | F48: Itausa PN
B49: ITUB4<XBSP> | C49: ITUB4 | D49: ItauUnibanco | E49: PN | F49: ItauUnibanco PN
B50: JBSS3<XBSP> | C50: JBSS3 | D50: JBS | E50: ON | F50: JBS ON
B51: KLBN11<XBSP> | C51: KLBN11 | D51: Klabin S/A | E51: UNT N2 | F51: Klabin S/A UNT N2
B52: RENT3<XBSP> | C52: RENT3 | D52: Localiza | E52: ON | F52: Localiza ON
B53: LREN3<XBSP> | C53: LREN3 | D53: Lojas Renner | E53: ON | F53: Lojas Renner ON
B54: LWSA3<XBSP> | C54: LWSA3 | D54: Lwsa | E54: ON | F54: Lwsa ON
B55: MGLU3<XBSP> | C55: MGLU3 | D55: Magaz Luiza | E55: ON | F55: Magaz Luiza ON
B56: MRFG3<XBSP> | C56: MRFG3 | D56: Marfrig | E56: ON | F56: Marfrig ON
B57: BEEF3<XBSP> | C57: BEEF3 | D57: Minerva | E57: ON | F57: Minerva ON
B58: MRVE3<XBSP> | C58: MRVE3 | D58: MRV | E58: ON | F58: MRV ON
B59: MULT3<XBSP> | C59: MULT3 | D59: Multiplan | E59: ON | F59: Multiplan ON
B60: PCAR3<XBSP> | C60: PCAR3 | D60: P.Acucar-Cbd | E60: ON | F60: P.Acucar-Cbd ON
B61: PETR3<XBSP> | C61: PETR3 | D61: Petrobras | E61: ON | F61: Petrobras ON
B62: PETR4<XBSP> | C62: PETR4 | D62: Petrobras | E62: PN | F62: Petrobras PN
B63: RECV3<XBSP> | C63: RECV3 | D63: Petrorecsa | E63: ON | F63: Petrorecsa ON
B64: PRIO3<XBSP> | C64: PRIO3 | D64: Petrorio | E64: ON | F64: Petrorio ON
B65: PETZ3<XBSP> | C65: PETZ3 | D65: Petz | E65: ON | F65: Petz ON
B66: RADL3<XBSP> | C66: RADL3 | D66: RaiaDrogasil | E66: ON | F66: RaiaDrogasil ON
B67: RAIZ4<XBSP> | C67: RAIZ4 | D67: Raizen | E67: PN | F67: Raizen PN
B68: RDOR3<XBSP> | C68: RDOR3 | D68: Rede D Or | E68: ON | F68: Rede D Or ON
B69: RAIL3<XBSP> | C69: RAIL3 | D69: Rumo S.A. | E69: ON | F69: =CONCATENATE(D69," ",E69) -> Rumo S.A. ON
B70: SBSP3<XBSP> | C70: SBSP3 | D70: Sabesp | E70: ON | F70: Sabesp ON
B71: SANB11<XBSP> | C71: SANB11 | D71: Santander BR | E71: UNT | F71: Santander BR UNT
B72: STBP3<XBSP> | C72: STBP3 | D72: Santos Brp | E72: ON | F72: Santos Brp ON
B73: SMTO3<XBSP> | C73: SMTO3 | D73: Sao Martinho | E73: ON | F73: Sao Martinho ON
B74: CSNA3<XBSP> | C74: CSNA3 | D74: Sid Nacional | E74: ON | F74: Sid Nacional ON
B75: SLCE3<XBSP> | C75: SLCE3 | D75: SLC Agricola | E75: ON | F75: SLC Agricola ON
B76: SUZB3<XBSP> | C76: SUZB3 | D76: Suzano S.A. | E76: ON | F76: Suzano S.A. ON
B77: TAEE11<XBSP> | C77: TAEE11 | D77: Taesa | E77: UNT N2 | F77: Taesa UNT N2
B78: VIVT3<XBSP> | C78: VIVT3 | D78: Telef Brasil | E78: ON | F78: Telef Brasil ON
B79: TIMS3<XBSP> | C79: TIMS3 | D79: Tim | E79: ON | F79: Tim ON
B80: TOTS3<XBSP> | C80: TOTS3 | D80: Totvs | E80: ON | F80: Totvs ON
B81: TRPL4<XBSP> | C81: TRPL4 | D81: Tran Paulist | E81: PN | F81: Tran Paulist PN
B82: UGPA3<XBSP> | C82: UGPA3 | D82: Ultrapar | E82: ON | F82: Ultrapar ON
B83: USIM5<XBSP> | C83: USIM5 | D83: Usiminas | E83: PNA | F83: Usiminas PNA
B84: VALE3<XBSP> | C84: VALE3 | D84: Vale | E84: ON | F84: Vale ON
B85: VAMO3<XBSP> | C85: VAMO3 | D85: Vamos | E85: ON | F85: Vamos ON
B86: VBBR3<XBSP> | C86: VBBR3 | D86: Vibra | E86: ON | F86: Vibra ON
B87: VIVA3<XBSP> | C87: VIVA3 | D87: Vivara S.A. | E87: ON | F87: Vivara S.A. ON
B88: WEGE3<XBSP> | C88: WEGE3 | D88: Weg | E88: ON | F88: Weg ON
B89: YDUQ3<XBSP> | C89: YDUQ3 | D89: Yduqs Part | E89: ON | F89: Yduqs Part ON
F133: =CONCATENATE(D133," ",E133) -> 
